fUSD/lending_fUSD_20240319
["ID","MTS","AMOUNT","RATE_DAILY","PERIOD"]
[319615872,1710889895459,-500.0,0.00034246,5]
[319615873,1710889895473,-554.0025834,0.00034246,5]
[319615874,1710889895484,-500.0,0.00034246,5]
[319615875,1710889895494,-3065.96,0.00034246,5]
[319615876,1710889895505,-500.0,0.00034246,5]
[319615877,1710889895516,-527.83,0.00034246,5]
[319615878,1710889895527,-1402.94,0.00034246,5]
[319615879,1710889895538,-863.28,0.00034246,5]
[319615880,1710889895549,-509.57,0.00034246,5]
[319615881,1710889895560,-816.49,0.00034246,5]
[319615882,1710889895572,-546.0,0.00034246,5]
[319615883,1710889895583,-500.0,0.00034246,5]
[319615884,1710889895594,-500.0,0.00034246,5]
[319615885,1710889895605,-1467.71,0.00034246,5]
[319615886,1710889895616,-10090.18,0.00034246,5]
[319615887,1710889895628,-500.0,0.00034246,5]
[319615888,1710889895639,-2448.69,0.00034246,5]
[319615889,1710889895650,-1832.0,0.00034246,5]
[319615890,1710889895661,-1702.82,0.00034246,5]
[319615891,1710889895672,-314.63848479,0.00034246,5]
[319615892,1710889895685,-576.68,0.00034246,5]
[319615893,1710889895696,-500.0,0.00034246,5]
[319615894,1710889895706,-550.72,0.00034246,5]
[319615895,1710889895717,-1410.4,0.00034246,5]
[319615896,1710889895730,-1698.2,0.00034246,5]
[319615897,1710889895741,-566.59,0.00034246,5]
[319615898,1710889895752,-618.74,0.00034246,5]
[319615899,1710889895764,-513.62327425,0.00034246,5]
[319615900,1710889895775,-525.5837154,0.00034246,5]
[319615901,1710889895786,-4353.24,0.00034246,5]
[319615902,1710889895797,-7073.81,0.00034246,5]
[319615903,1710889895808,-607.45119879,0.00034246,5]
[319615904,1710889895819,-522.69,0.00034246,5]
[319615905,1710889895829,-500.0,0.00034246,5]
[319615906,1710889895841,-928.93,0.00034246,5]
[319615907,1710889895852,-811.39,0.00034246,5]
[319615908,1710889895866,-1038.54,0.00034246,5]
[319615909,1710889895892,-4631.2,0.00034246,5]
[319615910,1710889895903,-1456.54,0.00034246,5]
[319615911,1710889895915,-871.05,0.00034246,5]
[319615912,1710889895927,-1056.59,0.00034246,5]
[319615913,1710889895939,-537.22,0.00034246,5]
[319615914,1710889895950,-500.0,0.00034246,5]
[319615915,1710889895961,-524.13,0.00034246,5]
[319615916,1710889895974,-2348.88,0.00034246,5]
[319615917,1710889895985,-515.48,0.00034246,5]
[319615918,1710889895995,-553.56275847,0.00034246,5]
[319615919,1710889896006,-853.27,0.00034246,5]
[319615920,1710889896017,-1115.49,0.00034246,5]
[319615921,1710889896028,-971.85,0.00034246,5]
[319615922,1710889896040,-543.38,0.00034246,5]
[319615923,1710889896052,-2831.03,0.00034246,5]
[319615924,1710889896063,-1184.24,0.00034246,5]
[319615925,1710889896074,-979.33,0.00034246,5]
[319615926,1710889896086,-1727.5,0.00034246,5]
[319615927,1710889896096,-522.77,0.00034246,5]
[319615928,1710889896106,-500.0,0.00034246,5]
[319615929,1710889896117,-690.56,0.00034246,5]
[319615930,1710889896128,-766.46,0.00034246,5]
[319615931,1710889896139,-817.88,0.00034246,5]
[319615932,1710889896150,-500.0,0.00034246,5]
[319615933,1710889896409,-4845.95,0.00034246,5]
[319615934,1710889896447,-556.39,0.00034246,5]
[319615935,1710889896457,-4803.55,0.00034246,5]
[319615936,1710889896468,-500.0,0.00034246,5]
[319615937,1710889896479,-500.0,0.00034246,5]
[319615938,1710889896490,-500.0,0.00034246,5]
[319615939,1710889896501,-34103.85,0.00034246,5]
[319615940,1710889896511,-1942.23,0.00034246,5]
[319615941,1710889896522,-1080.43,0.00034246,5]
[319615942,1710889896533,-3482.12,0.00034246,5]
[319615943,1710889896543,-1812.24,0.00034246,5]
[319615944,1710889896553,-500.0,0.00034246,5]
[319615945,1710889896565,-670.6,0.00034246,5]
[319615946,1710889896576,-600.36,0.00034246,5]
[319615947,1710889896588,-320.35776043,0.00034246,5]
[319615948,1710889896600,-500.0,0.00034246,5]
[319615949,1710889896611,-862.6,0.00034246,5]
[319615950,1710889896623,-4330.62,0.00034246,5]
[319615951,1710889896634,-876.81,0.00034246,5]
[319615952,1710889896646,-3516.45,0.00034246,5]
[319615953,1710889896658,-628.68,0.00034246,5]
[319615954,1710889896669,-728.13,0.00034246,5]
[319615955,1710889896680,-500.0,0.00034246,5]
[319615956,1710889896691,-898.81,0.00034246,5]
[319615957,1710889896702,-12216.87,0.00034246,5]
[319615958,1710889896713,-518.77,0.00034246,5]
[319615959,1710889896725,-500.0,0.00034246,5]
[319615960,1710889896736,-2145.43,0.00034246,5]
[319615961,1710889896746,-535.35,0.00034246,5]
[319615962,1710889896756,-2312.93,0.00034246,5]
[319615963,1710889896766,-500.0,0.00034246,5]
[319615964,1710889896776,-500.0,0.00034246,5]
[319615965,1710889896787,-555.13,0.00034246,5]
[319615966,1710889896797,-211.59337398,0.00034246,5]
[319615967,1710889896808,-901.75,0.00034246,5]
[319615968,1710889896818,-2237.89,0.00034246,5]
[319615969,1710889896827,-1754.94,0.00034246,5]
[319615970,1710889896843,-500.0,0.00034246,5]
[319615971,1710889896854,-2222.53,0.00034246,5]
[319615972,1710889896864,-693.88,0.00034246,5]
[319615973,1710889896873,-365.67,0.00034266,2]
[319615974,1710889896885,-269.0,0.0003448,2]
[319615975,1710889896895,-808.57,0.0003452,5]
[319615976,1710889896906,-739.62,0.0003452,5]
[319615977,1710889896916,-770.01,0.0003452,5]
[319615978,1710889896927,-706.97,0.0003452,5]
[319615979,1710889896937,-1912.51,0.0003452,5]
[319615980,1710889896947,-1956.9,0.0003452,5]
[319615981,1710889896957,-625.35,0.0003452,5]
[319615982,1710889896968,-2737.91,0.0003452,5]
[319615983,1710889896981,-727.13,0.0003452,5]
[319615984,1710889896993,-560.30885611,0.0003452,5]
[319615985,1710889897003,-969.84,0.0003452,5]
[319615986,1710889897012,-1547.97,0.0003452,5]
[319615987,1710889897023,-156.80581954,0.0003452,5]
[319615988,1710889897033,-771.88,0.0003452,5]
[319615989,1710889897043,-643.37620689,0.0003452,5]
[319615990,1710889897054,-500.0,0.0003452,5]
[319615991,1710889897064,-1734.35,0.0003452,5]
[319615992,1710889897076,-1362.64,0.0003452,5]
[319615993,1710889897087,-799.5,0.0003452,5]
[319615994,1710889897097,-506.51,0.0003452,5]
[319615995,1710889897108,-962.3,0.0003452,5]
[319615996,1710889897119,-500.0,0.0003452,5]
[319615997,1710889897129,-500.0,0.0003452,5]
[319615998,1710889897140,-738.08,0.0003452,5]
[319615999,1710889897151,-500.0,0.0003452,5]
[319616000,1710889897161,-500.0,0.0003452,5]
[319616001,1710889897172,-3065.96,0.0003452,5]
[319616002,1710889897183,-500.0,0.0003452,5]
[319616003,1710889897194,-527.83,0.0003452,5]
[319616004,1710889897204,-1402.94,0.0003452,5]
[319616005,1710889897214,-863.28,0.0003452,5]
[319616006,1710889897228,-509.57,0.0003452,5]
[319616007,1710889897238,-816.49,0.0003452,5]
[319616008,1710889897248,-546.0,0.0003452,5]
[319616009,1710889897257,-175.04893455,0.0003452,5]
[319616010,1710889897267,-500.0,0.0003452,5]
[319616011,1710889897276,-1467.71,0.0003452,5]
[319616012,1710889897286,-10090.18,0.0003452,5]
[319616013,1710889897295,-500.0,0.0003452,5]
[319616014,1710889897305,-2448.69,0.0003452,5]
[319616015,1710889897314,-1832.0,0.0003452,5]
[319616016,1710889897324,-1702.82,0.0003452,5]
[319616017,1710889897334,-576.68,0.0003452,5]
[319616018,1710889897343,-500.0,0.0003452,5]
[319616019,1710889897352,-550.72,0.0003452,5]
[319616020,1710889897362,-1410.4,0.0003452,5]
[319616021,1710889897372,-1698.2,0.0003452,5]
[319616022,1710889897382,-566.59,0.0003452,5]
[319616023,1710889897391,-618.74,0.0003452,5]
[319616024,1710889897401,-4353.24,0.0003452,5]
[319616025,1710889897410,-7073.81,0.0003452,5]
[319616026,1710889897420,-522.69,0.0003452,5]
[319616027,1710889897430,-500.0,0.0003452,5]
[319616028,1710889897439,-928.93,0.0003452,5]
[319616029,1710889897449,-811.39,0.0003452,5]
[319616030,1710889897458,-1038.54,0.0003452,5]
[319616031,1710889897468,-4631.2,0.0003452,5]
[319616032,1710889897481,-1456.54,0.0003452,5]
[319616033,1710889897493,-871.05,0.0003452,5]
[319616034,1710889897502,-1056.59,0.0003452,5]
[319616035,1710889897513,-537.22,0.0003452,5]
[319616036,1710889897522,-500.0,0.0003452,5]
[319616037,1710889897534,-524.13,0.0003452,5]
[319616038,1710889897544,-2348.88,0.0003452,5]
[319616039,1710889897554,-515.48,0.0003452,5]
[319616040,1710889897564,-853.27,0.0003452,5]
[319616041,1710889897574,-1115.49,0.0003452,5]
[319616042,1710889897584,-971.85,0.0003452,5]
[319616043,1710889897594,-543.38,0.0003452,5]
[319616044,1710889897604,-2831.03,0.0003452,5]
[319616045,1710889897615,-1184.24,0.0003452,5]
[319616046,1710889897625,-979.33,0.0003452,5]
[319616047,1710889897635,-1727.5,0.0003452,5]
[319616048,1710889897645,-522.77,0.0003452,5]
[319616049,1710889897655,-500.0,0.0003452,5]
[319616050,1710889897666,-690.56,0.0003452,5]
[319616051,1710889897676,-766.46,0.0003452,5]
[319616052,1710889897686,-817.88,0.0003452,5]
[319616053,1710889897696,-500.0,0.0003452,5]
[319616054,1710889897706,-4845.95,0.0003452,5]
[319616055,1710889897716,-556.39,0.0003452,5]
[319616056,1710889897728,-4803.55,0.0003452,5]
[319616057,1710889897738,-500.0,0.0003452,5]
[319616058,1710889897749,-500.0,0.0003452,5]
[319616059,1710889897759,-500.0,0.0003452,5]
[319616060,1710889897768,-34103.85,0.0003452,5]
[319616061,1710889897778,-1942.23,0.0003452,5]
[319616062,1710889897789,-1080.43,0.0003452,5]
[319616063,1710889897798,-3482.12,0.0003452,5]
[319616064,1710889897808,-1812.24,0.0003452,5]
[319616065,1710889897818,-500.0,0.0003452,5]
[319616066,1710889897828,-670.6,0.0003452,5]
[319616067,1710889897839,-600.36,0.0003452,5]
[319616068,1710889897849,-500.0,0.0003452,5]
[319616069,1710889897858,-862.6,0.0003452,5]
[319616070,1710889897870,-4330.62,0.0003452,5]
[319616071,1710889897880,-876.81,0.0003452,5]
[319616072,1710889897890,-3516.45,0.0003452,5]
[319616073,1710889897900,-628.68,0.0003452,5]
[319616074,1710889897912,-728.13,0.0003452,5]
[319616075,1710889897922,-460.20578081,0.0003452,5]
[319616076,1710889897931,-898.81,0.0003452,5]
[319616077,1710889897943,-12216.87,0.0003452,5]
[319616078,1710889897953,-518.77,0.0003452,5]
[319616079,1710889897963,-500.0,0.0003452,5]
[319616080,1710889897976,-2145.43,0.0003452,5]
[319616081,1710889897986,-535.35,0.0003452,5]
[319616082,1710889897996,-2312.93,0.0003452,5]
[319616083,1710889898005,-500.0,0.0003452,5]
[319616084,1710889898015,-500.0,0.0003452,5]
[319616085,1710889898026,-555.13,0.0003452,5]
[319616086,1710889898037,-901.75,0.0003452,5]
[319616087,1710889898047,-2237.89,0.0003452,5]
[319616088,1710889898058,-1754.94,0.0003452,5]
[319616089,1710889898068,-500.0,0.0003452,5]
[319616090,1710889898078,-2222.53,0.0003452,5]
[319616091,1710889898088,-693.88,0.0003452,5]
[319616092,1710889898098,-150.0,0.00034548,10]
[319616093,1710889898107,-151.0,0.00034613,2]
[319616094,1710889898116,-200.0,0.00034787,10]
[319616095,1710889898126,-808.57,0.00034794,5]
[319616096,1710889898136,-739.62,0.00034794,5]
[319616097,1710889898146,-770.01,0.00034794,5]
[319616098,1710889898156,-706.97,0.00034794,5]
[319616099,1710889898165,-1912.51,0.00034794,5]
[319616100,1710889898175,-1956.9,0.00034794,5]
[319616101,1710889898186,-625.35,0.00034794,5]
[319616102,1710889898196,-2737.91,0.00034794,5]
[319616103,1710889898205,-727.13,0.00034794,5]
[319616104,1710889898215,-969.84,0.00034794,5]
[319616105,1710889898231,-1547.97,0.00034794,5]
[319616106,1710889898241,-771.88,0.00034794,5]
[319616107,1710889898250,-500.0,0.00034794,5]
[319616108,1710889898259,-1734.35,0.00034794,5]
[319616109,1710889898269,-1362.64,0.00034794,5]
[319616110,1710889898278,-799.5,0.00034794,5]
[319616111,1710889898287,-506.51,0.00034794,5]
[319616112,1710889898296,-962.3,0.00034794,5]
[319616113,1710889898305,-492.70754553,0.00034794,5]
[319616114,1710889898314,-500.0,0.00034794,5]
[319616115,1710889898324,-738.08,0.00034794,5]
[319616116,1710889898333,-500.0,0.00034794,5]
[319616117,1710889898342,-500.0,0.00034794,5]
[319616118,1710889898352,-3065.96,0.00034794,5]
[319616119,1710889898361,-500.0,0.00034794,5]
[319616120,1710889898370,-527.83,0.00034794,5]
[319616121,1710889898383,-1402.94,0.00034794,5]
[319616122,1710889898392,-863.28,0.00034794,5]
[319616123,1710889898402,-509.57,0.00034794,5]
[319616124,1710889898413,-816.49,0.00034794,5]
[319616125,1710889898423,-546.0,0.00034794,5]
[319616126,1710889898432,-500.0,0.00034794,5]
[319616127,1710889898442,-1467.71,0.00034794,5]
[319616128,1710889898452,-10090.18,0.00034794,5]
[319616129,1710889898462,-500.0,0.00034794,5]
[319616130,1710889898475,-2448.69,0.00034794,5]
[319616131,1710889898485,-1832.0,0.00034794,5]
[319616132,1710889898494,-1702.82,0.00034794,5]
[319616133,1710889898503,-576.68,0.00034794,5]
[319616134,1710889898513,-500.0,0.00034794,5]
[319616135,1710889898522,-550.72,0.00034794,5]
[319616136,1710889898532,-1410.4,0.00034794,5]
[319616137,1710889898542,-1698.2,0.00034794,5]
[319616138,1710889898551,-566.59,0.00034794,5]
[319616139,1710889898560,-618.74,0.00034794,5]
[319616140,1710889898569,-4353.24,0.00034794,5]
[319616141,1710889898579,-7073.81,0.00034794,5]
[319616142,1710889898588,-522.69,0.00034794,5]
[319616143,1710889898598,-494.96,0.00034794,5]
[319616144,1710889898607,-928.93,0.00034794,5]
[319616145,1710889898617,-811.39,0.00034794,5]
[319616146,1710889898626,-1038.54,0.00034794,5]
[319616147,1710889898637,-4631.2,0.00034794,5]
[319616148,1710889898647,-1456.54,0.00034794,5]
[319616149,1710889898658,-871.05,0.00034794,5]
[319616150,1710889898667,-1056.59,0.00034794,5]
[319616151,1710889898677,-537.22,0.00034794,5]
[319616152,1710889898687,-500.0,0.00034794,5]
[319616153,1710889898698,-524.13,0.00034794,5]
[319616154,1710889898708,-2348.88,0.00034794,5]
[319616155,1710889898717,-515.48,0.00034794,5]
[319616156,1710889898729,-853.27,0.00034794,5]
[319616157,1710889898738,-1115.49,0.00034794,5]
[319616158,1710889898748,-971.85,0.00034794,5]
[319616159,1710889898757,-543.38,0.00034794,5]
[319616160,1710889898767,-2831.03,0.00034794,5]
[319616161,1710889898777,-1184.24,0.00034794,5]
[319616162,1710889898786,-979.33,0.00034794,5]
[319616163,1710889898796,-1727.5,0.00034794,5]
[319616164,1710889898805,-522.77,0.00034794,5]
[319616165,1710889898814,-500.0,0.00034794,5]
[319616166,1710889898823,-766.46,0.00034794,5]
[319616167,1710889898834,-690.56,0.00034794,5]
[319616168,1710889898843,-817.88,0.00034794,5]
[319616169,1710889898853,-500.0,0.00034794,5]
[319616170,1710889898928,-4845.95,0.00034794,5]
[319616171,1710889898937,-556.39,0.00034794,5]
[319616172,1710889898950,-4803.55,0.00034794,5]
[319616173,1710889898959,-500.0,0.00034794,5]
[319616174,1710889898969,-465.17468923,0.00034794,5]
[319616175,1710889898981,-500.0,0.00034794,5]
[319616176,1710889898990,-34103.85,0.00034794,5]
[319616177,1710889899000,-1942.23,0.00034794,5]
[319616178,1710889899009,-1080.43,0.00034794,5]
[319616179,1710889899018,-3482.12,0.00034794,5]
[319616180,1710889899028,-1812.24,0.00034794,5]
[319616181,1710889899037,-500.0,0.00034794,5]
[319616182,1710889899046,-670.6,0.00034794,5]
[319616183,1710889899056,-600.36,0.00034794,5]
[319616184,1710889899066,-201.28,0.00034794,5]
[319616185,1710889899075,-862.6,0.00034794,5]
[319616186,1710889899085,-4330.62,0.00034794,5]
[319616187,1710889899094,-876.81,0.00034794,5]
[319616188,1710889899104,-3516.45,0.00034794,5]
[319616189,1710889899113,-628.68,0.00034794,5]
[319616190,1710889899123,-728.13,0.00034794,5]
[319616191,1710889899132,-898.81,0.00034794,5]
[319616192,1710889899141,-12216.87,0.00034794,5]
[319616193,1710889899151,-518.77,0.00034794,5]
[319616194,1710889899161,-500.0,0.00034794,5]
[319616195,1710889899170,-2145.43,0.00034794,5]
[319616196,1710889899179,-535.35,0.00034794,5]
[319616197,1710889899189,-2312.93,0.00034794,5]
[319616198,1710889899198,-500.0,0.00034794,5]
[319616199,1710889899207,-464.31404659,0.00034794,5]
[319616200,1710889899216,-555.13,0.00034794,5]
[319616201,1710889899228,-901.75,0.00034794,5]
[319616202,1710889899237,-2237.89,0.00034794,5]
[319616203,1710889899246,-1754.94,0.00034794,5]
[319616204,1710889899257,-496.76014889,0.00034794,5]
[319616205,1710889899267,-2222.53,0.00034794,5]
[319616206,1710889899276,-693.88,0.00034794,5]
[319616207,1710889899285,-550.0,0.00035,3]
[319616208,1710889899295,-537.22994,0.00035,2]
[319616209,1710889899305,-808.57,0.00035068,5]
[319616210,1710889899314,-739.62,0.00035068,5]
[319616211,1710889899324,-770.01,0.00035068,5]
[319616212,1710889899334,-706.97,0.00035068,5]
[319616213,1710889899343,-1912.51,0.00035068,5]
[319616214,1710889899352,-1956.9,0.00035068,5]
[319616215,1710889899361,-625.35,0.00035068,5]
[319616216,1710889899370,-2737.91,0.00035068,5]
[319616217,1710889899380,-727.13,0.00035068,5]
[319616218,1710889899390,-969.84,0.00035068,5]
[319616219,1710889899399,-1547.97,0.00035068,5]
[319616220,1710889899408,-771.88,0.00035068,5]
[319616221,1710889899418,-500.0,0.00035068,5]
[319616222,1710889899427,-1734.35,0.00035068,5]
[319616223,1710889899436,-1362.64,0.00035068,5]
[319616224,1710889899445,-799.5,0.00035068,5]
[319616225,1710889899455,-506.51,0.00035068,5]
[319616226,1710889899466,-962.3,0.00035068,5]
[319616227,1710889899481,-421.32671857,0.00035068,5]
[319616228,1710889899490,-738.08,0.00035068,5]
[319616229,1710889899499,-500.0,0.00035068,5]
[319616230,1710889899508,-500.0,0.00035068,5]
[319616231,1710889899518,-3065.96,0.00035068,5]
[319616232,1710889899528,-500.0,0.00035068,5]
[319616233,1710889899537,-527.83,0.00035068,5]
[319616234,1710889899546,-1402.94,0.00035068,5]
[319616235,1710889899555,-863.28,0.00035068,5]
[319616236,1710889899565,-509.57,0.00035068,5]
[319616237,1710889899574,-816.49,0.00035068,5]
[319616238,1710889899583,-546.0,0.00035068,5]
[319616239,1710889899593,-500.0,0.00035068,5]
[319616240,1710889899602,-1467.71,0.00035068,5]
[319616241,1710889899612,-10090.18,0.00035068,5]
[319616242,1710889899621,-500.0,0.00035068,5]
[319616243,1710889899631,-2448.69,0.00035068,5]
[319616244,1710889899642,-1832.0,0.00035068,5]
[319616245,1710889899651,-1702.82,0.00035068,5]
[319616246,1710889899661,-576.68,0.00035068,5]
[319616247,1710889899671,-415.61321785,0.00035068,5]
[319616248,1710889899681,-550.72,0.00035068,5]
[319616249,1710889899691,-1410.4,0.00035068,5]
[319616250,1710889899700,-1698.2,0.00035068,5]
[319616251,1710889899709,-566.59,0.00035068,5]
[319616252,1710889899719,-618.74,0.00035068,5]
[319616253,1710889899733,-4353.24,0.00035068,5]
[319616254,1710889899742,-7073.81,0.00035068,5]
[319616255,1710889899751,-522.69,0.00035068,5]
[319616256,1710889899761,-928.93,0.00035068,5]
[319616257,1710889899771,-811.39,0.00035068,5]
[319616258,1710889899780,-1038.54,0.00035068,5]
[319616259,1710889899790,-4631.2,0.00035068,5]
[319616260,1710889899799,-1456.54,0.00035068,5]
[319616261,1710889899808,-871.05,0.00035068,5]
[319616262,1710889899817,-1056.59,0.00035068,5]
[319616263,1710889899827,-537.22,0.00035068,5]
[319616264,1710889899838,-500.0,0.00035068,5]
[319616265,1710889899848,-524.13,0.00035068,5]
[319616266,1710889899857,-2348.88,0.00035068,5]
[319616267,1710889899869,-515.48,0.00035068,5]
[319616268,1710889899878,-853.27,0.00035068,5]
[319616269,1710889899888,-1115.49,0.00035068,5]
[319616270,1710889899898,-971.85,0.00035068,5]
[319616271,1710889899908,-543.38,0.00035068,5]
[319616272,1710889899917,-2831.03,0.00035068,5]
[319616273,1710889899927,-1184.24,0.00035068,5]
[319616274,1710889899937,-979.33,0.00035068,5]
[319616275,1710889899947,-1727.5,0.00035068,5]
[319616276,1710889899957,-500.0,0.00035068,5]
[319616277,1710889899967,-766.46,0.00035068,5]
[319616278,1710889899982,-690.56,0.00035068,5]
[319616279,1710889899992,-522.77,0.00035068,5]
[319616280,1710889900001,-817.88,0.00035068,5]
[319616281,1710889900010,-500.0,0.00035068,5]
[319616282,1710889900020,-4845.95,0.00035068,5]
[319616283,1710889900029,-556.39,0.00035068,5]
[319616284,1710889900038,-4803.55,0.00035068,5]
[319616285,1710889900047,-500.0,0.00035068,5]
[319616286,1710889900056,-500.0,0.00035068,5]
[319616287,1710889900066,-34103.85,0.00035068,5]
[319616288,1710889900075,-1942.23,0.00035068,5]
[319616289,1710889900085,-1080.43,0.00035068,5]
[319616290,1710889900094,-3482.12,0.00035068,5]
[319616291,1710889900103,-1812.24,0.00035068,5]
[319616292,1710889900112,-500.0,0.00035068,5]
[319616293,1710889900121,-670.6,0.00035068,5]
[319616294,1710889900131,-600.36,0.00035068,5]
[319616295,1710889900140,-862.6,0.00035068,5]
[319616296,1710889900149,-4330.62,0.00035068,5]
[319616297,1710889900159,-876.81,0.00035068,5]
[319616298,1710889900169,-3516.45,0.00035068,5]
[319616299,1710889900179,-628.68,0.00035068,5]
[319616300,1710889900188,-728.13,0.00035068,5]
[319616301,1710889900198,-898.81,0.00035068,5]
[319616302,1710889900207,-12216.87,0.00035068,5]
[319616303,1710889900216,-518.77,0.00035068,5]
[319616304,1710889900229,-500.0,0.00035068,5]
[319616305,1710889900239,-2145.43,0.00035068,5]
[319616306,1710889900248,-535.35,0.00035068,5]
[319616307,1710889900257,-2312.93,0.00035068,5]
[319616308,1710889900266,-281.69883625,0.00035068,5]
[319616309,1710889900275,-555.13,0.00035068,5]
[319616310,1710889900285,-901.75,0.00035068,5]
[319616311,1710889900294,-2237.89,0.00035068,5]
[319616312,1710889900303,-1754.94,0.00035068,5]
[319616313,1710889900312,-2222.53,0.00035068,5]
[319616314,1710889900321,-693.88,0.00035068,5]
[319616315,1710889900330,-302.0,0.00035195,4]
[319616316,1710889900340,-808.57,0.00035342,5]
[319616317,1710889900350,-739.62,0.00035342,5]
[319616318,1710889900360,-770.01,0.00035342,5]
[319616319,1710889900369,-706.97,0.00035342,5]
[319616320,1710889900379,-1912.51,0.00035342,5]
[319616321,1710889900388,-1956.9,0.00035342,5]
[319616322,1710889900398,-625.35,0.00035342,5]
[319616323,1710889900407,-2737.91,0.00035342,5]
[319616324,1710889900417,-727.13,0.00035342,5]
[319616325,1710889900426,-969.84,0.00035342,5]
[319616326,1710889900435,-1547.97,0.00035342,5]
[319616327,1710889900446,-771.88,0.00035342,5]
[319616328,1710889900455,-554.26215066,0.00035342,5]
[319616329,1710889900465,-1734.35,0.00035342,5]
[319616330,1710889900477,-1362.64,0.00035342,5]
[319616331,1710889900486,-799.5,0.00035342,5]
[319616332,1710889900496,-506.51,0.00035342,5]
[319616333,1710889900505,-962.3,0.00035342,5]
[319616334,1710889900514,-738.08,0.00035342,5]
[319616335,1710889900523,-500.0,0.00035342,5]
[319616336,1710889900532,-629.32968246,0.00035342,5]
[319616337,1710889900541,-3065.96,0.00035342,5]
[319616338,1710889900550,-500.0,0.00035342,5]
[319616339,1710889900561,-527.83,0.00035342,5]
[319616340,1710889900570,-1402.94,0.00035342,5]
[319616341,1710889900580,-863.28,0.00035342,5]
[319616342,1710889900591,-509.57,0.00035342,5]
[319616343,1710889900600,-816.49,0.00035342,5]
[319616344,1710889900609,-546.0,0.00035342,5]
[319616345,1710889900618,-500.0,0.00035342,5]
[319616346,1710889900628,-1467.71,0.00035342,5]
[319616347,1710889900637,-10090.18,0.00035342,5]
[319616348,1710889900646,-526.5066066,0.00035342,5]
[319616349,1710889900655,-2448.69,0.00035342,5]
[319616350,1710889900665,-1832.0,0.00035342,5]
[319616351,1710889900674,-1702.82,0.00035342,5]
[319616352,1710889900684,-576.68,0.00035342,5]
[319616353,1710889900693,-550.72,0.00035342,5]
[319616354,1710889900702,-1410.4,0.00035342,5]
[319616355,1710889900711,-1698.2,0.00035342,5]
[319616356,1710889900722,-566.59,0.00035342,5]
[319616357,1710889900731,-618.74,0.00035342,5]
[319616358,1710889900740,-4353.24,0.00035342,5]
[319616359,1710889900750,-7073.81,0.00035342,5]
[319616360,1710889900759,-522.69,0.00035342,5]
[319616361,1710889900769,-928.93,0.00035342,5]
[319616362,1710889900779,-811.39,0.00035342,5]
[319616363,1710889900789,-1038.54,0.00035342,5]
[319616364,1710889900799,-4631.2,0.00035342,5]
[319616365,1710889900808,-1456.54,0.00035342,5]
[319616366,1710889900818,-871.05,0.00035342,5]
[319616367,1710889900827,-1056.59,0.00035342,5]
[319616368,1710889900837,-537.22,0.00035342,5]
[319616369,1710889900847,-500.0,0.00035342,5]
[319616370,1710889900856,-524.13,0.00035342,5]
[319616371,1710889900870,-2348.88,0.00035342,5]